bitfinex-derivatives/quotes_SOLF0:USTF0_20250516
["timestamp","ask_amount","ask_price","bid_price","bid_amount"]
[1747361493784,5.7711,173.24,173.2,5.7722]
[1747361494390,5.7707,173.25,173.21,5.7719]
[1747361496292,70.2504,173.26,173.16,3.7249]
[1747361496501,70.2504,173.26,173.17,2.16574436]
[1747361496692,70.2504,173.26,173.18,2.16574436]
[1747361496892,70.2504,173.26,173.19,2.16574436]
[1747361497091,70.2504,173.26,173.17,1.44342578]
[1747361497396,64.44,173.25,173.18,2.16620677]
[1747361497596,64.44,173.25,173.19,2.16620677]
[1747361497797,64.44,173.25,173.2,2.16620677]
[1747361497999,64.44,173.25,173.22,5.7715]
[1747361498700,64.44,173.25,173.17,1.44340692]
[1747361498898,69.8420197,173.25,173.17,1.44340692]
[1747361499099,69.8420197,173.25,173.13,1.44340692]
[1747361499300,69.8420197,173.25,173.14,2.16766441]
[1747361499497,5.7718,173.22,173.17,5.773]
[1747361499698,5.7718,173.22,173.12,64.44]
[1747361499998,5.7718,173.22,173.17,5.773]
[1747361500500,5.7718,173.22,173.12,64.44]
[1747361500704,5.7718,173.22,173.13,2.16816581]
[1747361500908,5.7718,173.22,173.14,2.16816581]
[1747361501109,5.772,173.21,173.17,5.7732]
[1747361501308,64.42,173.2,173.12,64.44]
[1747361501507,64.42,173.2,173.13,2.16919838]
[1747361501808,5.4020197,173.19,173.09,6.48961584]
[1747361502201,5.4020197,173.19,173.09,12.26541584]
[1747361502710,5.7746,173.14,173.09,12.26541584]
[1747361502905,128.84,173.13,173.1,5.7755]
[1747361503101,128.84,173.13,173.09,6.48961584]
[1747361503307,128.84,173.13,173.03,72.80801584]
[1747361503608,128.84,173.13,173.09,5.7757]
[1747361504202,134.6146,173.13,173.09,5.7757]
[1747361504401,128.84,173.13,173.1,5.7755]
[1747361504904,5.4020197,173.19,173.13,5.7746]
[1747361505105,64.44,173.15,173.13,5.7746]
[1747361505306,64.4,173.14,173.13,5.7746]
[1747361505505,64.4,173.14,173.12,5.7749]
[1747361505913,64.4,173.14,173.07,5.4020197]
[1747361506112,64.4,173.14,173.13,5.7746]
[1747361506413,64.4,173.17,173.13,2.16962938]
[1747361506612,64.4,173.17,173.08,65.88414628]
[1747361506801,64.4,173.17,173.09,3.61420168]
[1747361507005,64.4,173.17,173.1,2.1700554]
[1747361507206,64.4,173.17,173.11,2.1700554]
[1747361507408,64.4,173.17,173.08,64.44]
[1747361507611,64.4,173.17,173.09,2.17080992]
[1747361507808,64.4,173.17,173.05,1.9345]
[1747361508013,64.4,173.17,173.06,2.1712758]
[1747361508213,5.7743,173.14,173.09,5.7757]
[1747361508414,70.2343,173.14,173.09,5.7757]
[1747361509414,70.2343,173.14,173.1,5.7755]
[1747361509614,5.7746,173.13,173.06,1.44433594]
[1747361509919,64.38,173.12,173.07,2.17018995]
[1747361510212,64.38,173.12,173.08,2.17045719]
[1747361510413,64.38,173.12,173.05,1.9345]
[1747361510611,5.7755,173.11,173.06,2.17006876]
[1747361510812,5.7755,173.11,173.07,5.7764]
[1747361512315,70.1552,173.12,173.07,5.7764]
[1747361512508,64.38,173.12,173.07,5.7764]
[1747361512913,70.155,173.12,173.07,5.7764]
[1747361513115,64.38,173.12,173.07,5.7764]
[1747361514316,5.7753,173.11,173.07,5.7764]
[1747361514618,64.38,173.12,173.08,5.7762]
[1747361515014,64.38,173.12,173.05,1.9345]
[1747361515216,64.38,173.12,173.06,2.17171237]
[1747361515421,64.34,173.11,173.07,2.17061775]
[1747361515717,64.34,173.11,173.05,1.9345]
[1747361515918,64.34,173.11,173.1,5.7756]
[1747361516415,128.8,173.14,173.13,5.7746]
[1747361516811,499.06,173.19,173.07,5.4020197]
[1747361517016,64.34,173.18,173.17,5.7733]
[1747361517207,128.8,173.19,173.1,5.4020197]
[1747361517414,128.8,173.19,173.11,68.2999]
[1747361517814,128.8,173.19,173.12,1.8358]
[1747361518012,128.8,173.19,173.18,5.7729]
[1747361520320,64.46,173.19,173.18,5.7729]
[1747361524224,64.28,173.23,173.16,5.4020197]
[1747361524722,64.46,173.25,173.16,5.4020197]
[1747361524910,64.28,173.24,173.17,2.16815483]
[1747361525115,64.28,173.24,173.18,2.16815483]
[1747361525316,64.28,173.24,173.23,5.771]
[1747361526417,128.72,173.25,173.24,5.7709]
[1747361528222,64.24,173.29,173.27,5.7698]
[1747361528517,64.24,173.28,173.19,1.9579]
[1747361528721,64.24,173.28,173.2,2.1686972]
[1747361528921,64.24,173.28,173.26,5.77]
[1747361529223,64.24,173.29,173.19,1.9579]
[1747361529424,64.22,173.28,173.2,2.16873529]
[1747361529612,64.22,173.28,173.27,5.7697]
[1747361529817,64.22,173.28,173.19,7.3599197]
[1747361530013,64.22,173.28,173.2,2.16887066]
[1747361530217,64.22,173.28,173.21,2.16887066]
[1747361530417,64.22,173.28,173.26,5.77]
[1747361530619,64.22,173.27,173.2,2.16833607]
[1747361530815,64.22,173.27,173.21,2.16833607]
[1747361531021,64.22,173.27,173.26,5.7703]
[1747361532724,64.24,173.29,173.28,5.7696]
[1747361532918,128.44,173.29,173.28,5.7696]
[1747361533120,64.24,173.29,173.28,5.7696]
[1747361534931,64.22,173.33,173.29,5.7693]
[1747361535228,64.18,173.32,173.29,5.7693]
[1747361535728,64.16,173.31,173.29,5.7693]
[1747361535932,64.16,173.31,173.3,5.7689]
[1747361536228,64.16,173.31,173.23,2.16531731]
[1747361536422,64.16,173.31,173.24,2.16531731]
[1747361536623,64.16,173.31,173.25,1.8367]
[1747361537931,64.16,173.31,173.27,5.7697]
[1747361538627,64.16,173.31,173.21,64.24]
[1747361539229,5.7694,173.29,173.25,5.7705]
[1747361539433,64.16,173.31,173.21,64.24]
[1747361539827,5.7698,173.28,173.21,64.24]
[1747361540532,5.77,173.27,173.23,5.7712]
[1747361540734,64.12,173.26,173.21,64.24]
[1747361540934,64.12,173.26,173.2,1.9697]
[1747361541234,5.7709,173.24,173.2,5.7722]
[1747361541628,5.7707,173.25,173.2,5.7722]
[1747361541829,5.7707,173.25,173.21,5.7719]
[1747361542641,64.12,173.26,173.19,1.9579]
[1747361543029,64.12,173.26,173.19,4.12421745]
[1747361543229,64.12,173.26,173.19,1.9579]
[1747361543425,64.12,173.26,173.24,5.7707]
[1747361543938,64.12,173.26,173.19,1.9579]
[1747361544235,5.77,173.27,173.19,1.9579]
[1747361544236,64.1,173.25,173.19,1.9579]
[1747361545634,5.771,173.24,173.19,1.9579]
[1747361545830,64.1,173.25,173.17,64.22]
[1747361546032,64.1,173.25,173.13,73.4170197]
[1747361546232,5.7723,173.2,173.13,68.015]
[1747361546426,64.08,173.19,173.13,1.8297]
[1747361546731,64.08,173.19,173.08,562.98]
[1747361546732,5.7743,173.14,173.09,4.06465837]
[1747361546932,64.08,173.13,173.09,1.8936]
[1747361547135,128.3,173.13,173.07,6.48961584]
[1747361547736,64.06,173.12,173.07,6.48961584]
[1747361548442,64.06,173.12,173.04,66.0884]
[1747361548639,64.06,173.12,173.05,2.17263196]
[1747361548939,64.06,173.12,173.04,66.0884]
[1747361549131,64.06,173.12,173.05,2.17266354]
[1747361549328,64.06,173.12,173.09,5.7757]
[1747361549544,64.06,173.12,173.04,66.0884]
[1747361549739,64.06,173.12,173.04,1.8684]
[1747361550440,5.7742,173.15,173.1,5.7756]
[1747361550741,128.3,173.14,173.1,5.7756]
[1747361551135,128.3,173.14,173.11,5.7752]
[1747361551335,128.3,173.14,173.04,1.8684]
[1747361551531,128.3,173.14,173.11,5.775]
[1747361551736,128.3,173.14,173.05,2.17265885]
[1747361552545,64.06,173.13,173.07,5.4020197]
[1747361553042,5.7725,173.2,173.08,2.16977937]
[1747361553242,128.3,173.19,173.08,2.16977937]
[1747361553441,128.3,173.18,173.07,5.4020197]
[1747361553642,128.3,173.18,173.08,4.10265332]
[1747361553845,128.3,173.18,173.1,5.4020197]
[1747361554040,128.3,173.18,173.06,2.16906904]
[1747361554240,5.7736,173.17,173.11,5.7749]
[1747361554438,128.3,173.18,173.11,5.7749]
[1747361554640,128.3,173.18,173.07,2.16906904]
[1747361554939,128.3,173.18,173.05,5.40515095]
[1747361555235,128.3,173.18,173.06,2.17027418]
[1747361555549,128.3,173.18,173.05,6.84922999]
[1747361555935,128.3,173.18,173.05,5.40515095]
[1747361556143,5.40515095,173.21,173.05,5.40515095]
[1747361556339,128.28,173.2,173.08,5.40515095]
[1747361556843,128.28,173.2,173.05,5.40515095]
[1747361557345,128.28,173.2,173.08,5.40515095]
[1747361557743,128.28,173.2,173.17,5.7731]
[1747361558154,128.04,173.19,173.11,5.40515095]
[1747361558341,128.04,173.19,173.18,5.7727]
[1747361558842,64.02,173.21,173.14,5.40515095]
[1747361559045,64.02,173.21,173.15,3.7059]
[1747361559540,64.02,173.23,173.17,5.40515095]
[1747361559946,64.02,173.23,173.22,5.7716]
[1747361560136,64.02,173.23,173.15,3.7059]
[1747361560644,64.02,173.23,173.22,5.7716]
[1747361561245,499.04,173.32,173.22,5.7716]
[1747361561442,128.02,173.31,173.22,5.7716]
[1747361561848,128.02,173.31,173.15,3.7059]
[1747361562045,1.05775684,173.3,173.15,3.7059]
[1747361562246,9.69572166,173.3,173.18,5.7729]
[1747361562548,1.05775684,173.29,173.18,5.7729]
[1747361562749,5.7716,173.23,173.18,5.7729]
[1747361562941,128.0,173.22,173.15,3.7059]
[1747361563143,63.98,173.22,173.15,3.7059]
[1747361563648,63.98,173.22,173.21,5.7719]
[1747361564744,63.98,173.22,173.17,2.16743889]
[1747361564946,63.98,173.22,173.15,3.7059]
[1747361566553,69.7517,173.22,173.18,5.7727]
[1747361566746,63.98,173.22,173.13,64.02]
[1747361566952,63.98,173.22,173.1,1.8649]
[1747361567251,63.98,173.22,173.11,2.17011936]
[1747361567451,63.98,173.22,173.12,2.17011936]
[1747361567653,63.98,173.22,173.1,1.8649]
[1747361567654,69.7516,173.22,173.13,2.17011936]
[1747361567950,69.7516,173.22,173.14,2.17011936]
[1747361568252,63.98,173.22,173.1,3.3086032]
[1747361568452,5.772,173.21,173.17,5.7731]
[1747361568656,63.98,173.22,173.12,2.17007894]
[1747361568853,5.7727,173.19,173.16,5.7736]
[1747361569054,63.98,173.22,173.16,5.7736]
[1747361569252,63.98,173.22,173.11,2.17035111]
[1747361569441,8.63796482,173.3,173.12,2.17035111]
[1747361569647,127.92,173.29,173.13,2.17035111]
[1747361569957,128.97781911,173.29,173.14,66.17035111]
[1747361570144,5.7708,173.25,173.15,2.17035111]
[1747361570349,5.7708,173.25,173.14,64.0]
[1747361570350,127.92,173.24,173.14,64.0]
[1747361570550,127.92,173.24,173.15,3.9961545]
[1747361570854,127.92,173.24,173.16,2.16641829]
[1747361571152,127.92,173.24,173.15,1.8288]
[1747361571352,63.92,173.23,173.21,5.7717]
[1747361571752,63.92,173.23,173.16,2.16629978]
[1747361571955,63.92,173.23,173.14,64.0]
[1747361573056,5.7717,173.22,173.18,5.7727]
[1747361573555,63.92,173.23,173.18,5.7727]
[1747361573756,69.6914,173.23,173.18,5.7727]
[1747361573957,63.92,173.23,173.14,64.0]
[1747361574151,63.92,173.23,173.15,2.16681567]
[1747361574354,63.92,173.23,173.14,64.0]
[1747361574556,63.92,173.23,173.15,2.16697866]
[1747361574855,63.92,173.23,173.14,64.0]
[1747361575051,63.92,173.23,173.15,2.16691148]
[1747361575253,63.92,173.23,173.14,64.0]
[1747361575453,63.92,173.23,173.15,2.16757063]
[1747361575654,63.92,173.23,173.14,64.0]
[1747361575854,63.92,173.23,173.15,2.16821996]
[1747361576056,63.92,173.23,173.14,64.0]
[1747361576254,69.6916,173.23,173.18,5.7727]
[1747361576559,63.92,173.23,173.18,5.7727]
[1747361576857,63.92,173.23,173.17,5.7732]
[1747361577058,63.92,173.23,173.14,64.0]
[1747361577558,63.92,173.23,173.15,2.16786919]
[1747361577754,63.92,173.23,173.14,64.0]
[1747361577956,63.92,173.23,173.15,2.16742267]
[1747361578153,63.92,173.23,173.11,2.16815249]
[1747361578351,63.92,173.23,173.13,5.7745]
[1747361579850,5.7732,173.18,173.13,5.7745]
[1747361580052,63.86,173.17,173.13,5.7745]
[1747361580558,69.6333,173.17,173.13,5.7745]
[1747361580858,63.86,173.17,173.14,5.7742]
[1747361582162,63.86,173.17,173.1,1.8603]
[1747361582460,63.86,173.17,173.11,2.16955546]
[1747361582653,63.86,173.17,173.1,7.26484766]
[1747361583462,63.86,173.17,173.11,3.6147913]
[1747361583663,63.86,173.17,173.16,5.7736]
[1747361584657,64.02,173.22,173.16,2.17182411]
[1747361584853,63.82,173.23,173.17,2.17182411]
[1747361585062,69.5915,173.23,173.19,5.7723]
[1747361585257,63.82,173.23,173.19,5.7723]
[1747361585458,63.82,173.23,173.16,5.40454766]
[1747361585655,63.82,173.23,173.17,2.171861]
[1747361585857,63.82,173.23,173.16,5.40454766]
[1747361586062,63.82,173.23,173.17,2.17168319]
[1747361586262,63.82,173.23,173.16,5.40454766]
[1747361586459,63.82,173.23,173.17,2.17268755]
[1747361586659,63.82,173.23,173.13,69.42454766]
[1747361586955,63.82,173.23,173.14,2.1727844]
[1747361587159,63.82,173.23,173.17,5.7733]
[1747361587355,63.82,173.23,173.13,69.42454766]
[1747361587555,63.82,173.23,173.14,2.17390931]
[1747361587762,63.82,173.23,173.21,5.7717]
[1747361588158,63.82,173.23,173.15,1.44352214]
[1747361588359,63.82,173.23,173.22,5.7716]
[1747361589362,63.78,173.23,173.22,5.7716]
[1747361589559,64.02,173.24,173.23,5.7713]
[1747361589761,127.8,173.24,173.23,5.7713]
[1747361590859,127.8,173.24,173.17,1.44347215]
[1747361591064,127.8,173.24,173.18,2.17403735]
[1747361591258,127.8,173.24,173.19,2.17403735]
[1747361591459,127.8,173.24,173.2,5.7721]
[1747361591765,127.8,173.24,173.15,1.9055]
[1747361591965,127.8,173.24,173.16,2.17469085]
[1747361592169,127.8,173.24,173.2,5.772]
[1747361592468,133.571,173.24,173.2,5.772]
[1747361593368,5.7713,173.23,173.19,5.7725]
[1747361594369,127.8,173.24,173.16,1.44353533]
[1747361594667,127.8,173.24,173.17,2.1751951]
[1747361594859,5.7722,173.21,173.17,5.7733]
[1747361595271,5.7722,173.21,173.18,2.1769194]
[1747361595565,5.7723,173.2,173.16,5.7735]
[1747361595766,5.7723,173.2,173.17,2.17734274]
[1747361595976,63.74,173.19,173.16,5.7735]
[1747361596164,63.74,173.19,173.17,2.17754423]
[1747361596360,63.74,173.19,173.18,2.17754423]
[1747361596570,63.74,173.19,173.18,2.17768716]
[1747361600271,63.74,173.19,173.13,64.02]
[1747361600467,63.74,173.19,173.14,2.18181374]
[1747361600668,63.74,173.19,173.15,2.18181374]
[1747361600872,63.74,173.19,173.16,3.62558226]
[1747361601071,63.74,173.19,173.17,2.18181374]
[1747361601373,63.7,173.22,173.2,5.772]
[1747361601670,63.7,173.22,173.21,2.18181374]
[1747361602272,64.02,173.24,173.21,2.18181374]
[1747361602467,63.68,173.23,173.22,2.18181374]
[1747361603273,64.02,173.24,173.22,2.18181374]
[1747361603574,64.02,173.24,173.23,2.18181374]
[1747361604067,64.02,173.24,173.23,7.94916952]
[1747361604268,63.68,173.26,173.23,2.17786952]
[1747361604466,63.68,173.26,173.24,2.17786952]
[1747361604667,63.68,173.26,173.25,5.7703]
[1747361604871,63.68,173.26,173.18,63.8]
[1747361605073,63.68,173.26,173.19,3.62046093]
[1747361605272,63.68,173.26,173.2,2.17710023]
[1747361605573,63.68,173.26,173.21,2.17710023]
[1747361605765,63.68,173.26,173.23,5.771]
[1747361606273,63.8,173.27,173.24,5.7708]
[1747361606474,63.66,173.26,173.18,63.8]
[1747361606774,63.66,173.26,173.19,2.17599637]
[1747361606970,63.66,173.26,173.25,5.7706]
[1747361607271,63.66,173.26,173.18,63.8]
[1747361607572,63.66,173.26,173.19,2.1754692]
[1747361607772,63.66,173.26,173.2,2.1754692]
[1747361607973,63.66,173.26,173.21,2.1754692]
[1747361608164,63.66,173.26,173.22,3.61884996]
[1747361608365,63.66,173.26,173.23,2.1754692]
[1747361608565,63.66,173.26,173.22,1.44338076]
[1747361608970,63.66,173.26,173.25,5.7706]
[1747361609167,63.8,173.27,173.25,5.7706]
[1747361609371,63.62,173.27,173.19,5.40454766]
[1747361610174,63.62,173.27,173.26,5.7703]
[1747361611483,63.78,173.28,173.27,5.7699]
[1747361611681,127.4,173.28,173.19,5.40454766]
[1747361611978,127.4,173.28,173.25,5.7704]
[1747361612280,127.4,173.28,173.19,5.40454766]
[1747361612483,127.4,173.28,173.2,3.61997162]
[1747361612681,63.78,173.28,173.21,2.17679825]
[1747361612877,127.38,173.28,173.22,2.17679825]
[1747361613180,127.38,173.28,173.23,3.61997584]
[1747361613380,127.38,173.28,173.25,5.7703]
[1747361613877,127.38,173.28,173.26,5.7701]
[1747361614177,127.38,173.28,173.19,69.00454766]
[1747361614378,127.38,173.28,173.2,3.61996133]
[1747361614578,127.38,173.28,173.21,2.17678599]
[1747361614778,127.38,173.28,173.22,2.17678599]
[1747361615078,127.38,173.28,173.23,2.17678599]
[1747361615270,127.38,173.28,173.26,5.7703]
[1747361615878,127.38,173.28,173.27,5.7699]
[1747361616477,63.78,173.28,173.27,5.7699]
[1747361618685,63.56,173.3,173.29,5.7691]
[1747361619284,562.6,173.32,173.29,5.7691]
[1747361619487,63.54,173.3,173.29,5.7691]
[1747361619678,63.54,173.3,173.22,1.44313407]
[1747361619886,63.54,173.3,173.22,63.56]
[1747361620282,63.54,173.3,173.29,5.7693]
[1747361620686,63.56,173.32,173.31,5.7686]
[1747361621494,63.52,173.34,173.25,5.40454766]
[1747361621694,63.52,173.34,173.26,63.54]
[1747361621895,127.06,173.36,173.35,5.7673]
[1747361622490,63.54,173.36,173.34,5.7675]
[1747361623095,63.54,173.36,173.33,5.7679]
[1747361623398,63.54,173.36,173.28,5.40454766]
[1747361624287,63.54,173.36,173.33,5.7676]
[1747361624491,63.54,173.36,173.27,63.52]
[1747361624892,5.7677,173.34,173.27,63.52]
[1747361625202,63.54,173.36,173.27,63.52]
[1747361625398,63.54,173.36,173.28,5.7695]
[1747361625608,63.54,173.36,173.26,63.54]
[1747361625805,63.54,173.36,173.24,5.7132]
[1747361626006,5.40454766,173.34,173.25,5.7704]
[1747361626207,63.48,173.33,173.25,5.7704]
[1747361626407,63.54,173.32,173.25,5.7704]
[1747361626602,5.7692,173.3,173.25,5.7704]
[1747361626799,63.48,173.29,173.25,5.7704]
[1747361627203,63.48,173.29,173.2,6.48961584]
[1747361627204,63.54,173.28,173.2,6.48961584]
[1747361627597,5.7708,173.25,173.21,5.7719]
[1747361627802,63.46,173.24,173.21,5.7719]
[1747361628105,69.2312,173.24,173.19,5.7725]
[1747361628706,69.2312,173.24,173.2,5.7721]
[1747361628908,132.7712,173.24,173.2,5.7721]
[1747361629403,127.0,173.24,173.17,3.7624]
[1747361631109,127.0,173.24,173.19,5.7726]
[1747361631408,127.0,173.24,173.17,3.7624]
[1747361631809,132.771,173.24,173.2,5.7722]
[1747361632103,132.771,173.24,173.17,3.7624]
[1747361632104,63.44,173.23,173.21,2.17824043]
[1747361632306,63.44,173.23,173.22,2.17824043]
[1747361632508,63.44,173.23,173.22,5.7716]
[1747361632709,63.44,173.23,173.17,3.7624]
[1747361632905,69.3106,173.25,173.21,5.7719]
[1747361633108,63.44,173.24,173.21,5.7719]
[1747361633711,63.54,173.25,173.22,5.7716]
[1747361633910,63.44,173.24,173.22,5.7716]
[1747361635815,63.44,173.24,173.18,1.44332746]
[1747361636114,63.44,173.24,173.19,2.18065693]
[1747361636305,63.44,173.24,173.2,2.18065693]
[1747361636509,5.7714,173.23,173.18,7.21602746]
[1747361636709,5.7714,173.23,173.18,5.7727]
[1747361636921,69.211,173.24,173.17,3.7624]
[1747361637317,63.44,173.24,173.17,3.7624]
[1747361637618,69.2111,173.24,173.19,5.7726]
[1747361637916,5.40454766,173.31,173.2,2.17946385]
[1747361638115,5.7697,173.28,173.21,2.17946385]
[1747361638415,5.7697,173.28,173.22,2.17946385]
[1747361638615,5.7697,173.28,173.17,3.7624]
[1747361638818,63.4,173.27,173.18,3.62226133]
[1747361639016,63.4,173.27,173.19,2.17893195]
[1747361639211,63.4,173.27,173.2,2.17893195]
[1747361639413,63.4,173.27,173.21,2.17893195]
[1747361639609,63.4,173.27,173.22,2.17826031]
[1747361639816,63.4,173.27,173.23,2.17826031]
[1747361640015,63.4,173.27,173.17,67.3224]
[1747361640216,63.56,173.26,173.18,2.17840356]
[1747361640422,63.56,173.26,173.23,5.771]
[1747361641220,63.56,173.26,173.24,5.7709]
[1747361641423,63.56,173.26,173.2,1.44331437]
[1747361641625,63.56,173.26,173.21,2.17773462]
[1747361641923,63.56,173.26,173.23,5.7711]
[1747361642516,63.38,173.25,173.23,5.7711]
[1747361643232,63.38,173.25,173.21,5.7716]
[1747361643727,63.38,173.25,173.22,2.17979315]
[1747361644223,63.38,173.25,173.23,2.17949217]
[1747361644627,63.38,173.25,173.2,5.7722]
[1747361644828,63.38,173.25,173.18,1.44330295]
[1747361645534,63.38,173.25,173.19,2.18219214]
[1747361645723,5.7712,173.24,173.2,5.7722]
[1747361646023,5.7712,173.24,173.2,7.95440186]
[1747361646224,5.7712,173.24,173.21,2.18220186]
[1747361646633,69.1507,173.25,173.18,1.44330295]
[1747361646820,63.34,173.25,173.18,1.44330295]
[1747361647025,63.56,173.27,173.18,1.44330295]
[1747361647220,498.78,173.33,173.19,5.40454766]
[1747361647428,63.34,173.29,173.22,5.40454766]
[1747361647629,63.34,173.29,173.22,68.74454766]
[1747361647828,63.34,173.29,173.28,5.7696]
[1747361649528,63.34,173.29,173.28,7.94904289]
[1747361649733,63.34,173.29,173.28,5.7696]
[1747361650336,63.34,173.29,173.28,7.94924308]
[1747361650634,63.34,173.3,173.29,5.7693]
[1747361650840,63.34,173.3,173.29,7.94894308]
[1747361651530,562.12,173.33,173.29,7.94894308]
[1747361651737,63.3,173.32,173.29,5.7693]
[1747361654038,63.3,173.32,173.22,68.74454766]
[1747361654743,63.3,173.32,173.23,3.6232886]
[1747361655036,63.3,173.32,173.24,2.18025654]
[1747361655241,69.0684,173.32,173.27,5.7699]
[1747361655441,63.3,173.32,173.27,5.7699]
[1747361655638,63.3,173.32,173.22,68.74454766]
[1747361655840,63.3,173.32,173.23,2.18020647]
[1747361656037,63.26,173.32,173.24,2.18020647]
[1747361656232,63.32,173.34,173.25,9.02765604]
[1747361656437,63.26,173.33,173.31,5.7683]
[1747361656638,63.32,173.34,173.31,5.7683]
[1747361656835,63.26,173.33,173.26,1.44290191]
[1747361657039,63.26,173.33,173.27,2.17817002]
[1747361657239,63.32,173.34,173.28,2.17817002]
[1747361657444,63.26,173.33,173.29,2.17817002]
[1747361657646,126.58,173.34,173.33,5.7679]
[1747361659052,126.58,173.34,173.32,5.7682]
[1747361660947,126.54,173.34,173.32,5.7682]
[1747361661344,126.54,173.34,173.25,5.40454766]
[1747361661539,126.54,173.34,173.26,3.61843746]
[1747361661845,126.54,173.34,173.29,5.769]
[1747361662144,5.7684,173.32,173.22,68.74454766]
[1747361662343,5.7684,173.32,173.23,2.17548588]
[1747361662649,126.54,173.34,173.24,2.17548588]
[1747361662842,126.54,173.34,173.25,2.17548588]
[1747361663042,126.54,173.34,173.26,2.17548588]
[1747361663244,126.54,173.34,173.27,2.17548588]
[1747361663445,5.7684,173.32,173.27,5.7699]
[1747361663753,5.7684,173.32,173.22,68.74454766]
[1747361664052,5.7684,173.32,173.23,2.17536783]
[1747361664243,5.7684,173.32,173.24,2.17536783]
[1747361664550,5.7684,173.32,173.23,1.44296561]
[1747361664749,5.7684,173.32,173.24,3.61835954]
[1747361664950,5.7687,173.31,173.25,2.17539393]
[1747361665145,63.2,173.3,173.26,2.17539393]
[1747361665342,63.2,173.3,173.22,68.74454766]
[1747361665538,63.2,173.3,173.23,2.17529061]
[1747361665744,63.2,173.3,173.24,2.17529061]
[1747361665949,63.2,173.3,173.25,2.17529061]
[1747361666150,63.2,173.3,173.26,2.17529061]
[1747361666347,63.2,173.3,173.27,5.7697]
[1747361668050,63.2,173.3,173.22,68.74454766]
[1747361668251,63.2,173.3,173.23,2.17509953]
[1747361668443,63.2,173.3,173.24,2.17509953]
[1747361668642,63.2,173.3,173.25,2.17509953]
[1747361668853,63.2,173.3,173.22,68.74454766]
[1747361669751,68.969,173.3,173.26,5.77]
[1747361669949,126.52,173.3,173.23,1.442996]
[1747361670146,126.52,173.3,173.24,2.17673542]
[1747361670344,5.7702,173.27,173.23,5.7712]
[1747361670546,5.7702,173.27,173.24,2.17658299]
[1747361670747,5.7702,173.27,173.23,5.7712]
[1747361670947,63.14,173.26,173.24,2.176727]
[1747361671243,68.9103,173.26,173.23,5.7712]
[1747361671447,68.9103,173.26,173.24,2.17711496]
[1747361671642,68.9103,173.26,173.22,5.7715]
[1747361671846,68.9103,173.26,173.23,2.17806603]
[1747361672046,68.9103,173.26,173.24,2.17806603]
[1747361672247,68.9103,173.26,173.22,5.7715]
[1747361672447,68.9103,173.26,173.23,2.17793468]
[1747361672648,68.9103,173.26,173.24,2.17793468]
[1747361672947,68.9103,173.26,173.22,5.7715]
[1747361673144,63.14,173.26,173.23,2.17721719]
[1747361673348,126.46,173.26,173.2,5.772]
[1747361673654,126.46,173.26,173.21,2.1778036]
[1747361673856,5.7715,173.23,173.19,5.7726]
[1747361674050,126.46,173.26,173.2,2.17797212]
[1747361674051,63.14,173.22,173.2,2.17797212]
[1747361674263,126.46,173.22,173.16,1.9357]